[Event "Live Chess"]
[Site "Chess.com"]
[Date "2023.05.20"]
[Round "-"]
[White "CheckString"]
[Black "BostonStrangler"]
[Result "0-1"]
[WhiteElo "1226"]
[BlackElo "2086"]
[TimeControl "300"]
[EndTime "10:35:11 PDT"]
[Termination "BostonStrangler won by resignation"]

1. e4 {[%clk 0:04:57.1]} 1... c5 {[%clk 0:04:58.8]} 2. c3 {[%clk 0:04:51.2]}
2... d5 {[%clk 0:04:54.5]} 3. Na3 {[%clk 0:04:50.1]} 3... dxe4 {[%clk
0:04:51.3]} 4. Bc4 {[%clk 0:04:43.3]} 4... Nf6 {[%clk 0:04:43.7]} 5. f3 {[%clk
0:04:35.8]} 5... Nc6 {[%clk 0:04:38.9]} 6. fxe4 {[%clk 0:04:31.8]} 6... Nxe4
{[%clk 0:04:37.6]} 7. Nf3 {[%clk 0:04:30.7]} 7... e6 {[%clk 0:04:28.9]} 8. O-O
{[%clk 0:04:28.3]} 8... Be7 {[%clk 0:04:26.2]} 9. d3 {[%clk 0:04:19.5]} 9... Nf6
{[%clk 0:04:24.7]} 10. Bg5 {[%clk 0:04:17.8]} 10... O-O {[%clk 0:04:22.8]} 11.
Qc2 {[%clk 0:04:13.6]} 11... a6 {[%clk 0:04:20.9]} 12. Rad1 {[%clk 0:04:07.8]}
12... b5 {[%clk 0:04:19.7]} 13. Bb3 {[%clk 0:04:05.8]} 13... Bb7 {[%clk
0:04:17.1]} 14. d4 {[%clk 0:03:59.6]} 14... cxd4 {[%clk 0:04:16]} 15. cxd4
{[%clk 0:03:58.2]} 15... Qb6 {[%clk 0:04:11.5]} 16. Be3 {[%clk 0:03:51.1]} 16...
Nb4 {[%clk 0:04:10.3]} 17. Qf2 {[%clk 0:03:45.7]} 17... Nbd5 {[%clk 0:04:08.3]}
18. Rc1 {[%clk 0:03:42.4]} 18... Nxe3 {[%clk 0:04:04.1]} 19. Qxe3 {[%clk
0:03:42.3]} 19... Nd5 {[%clk 0:04:01.6]} 20. Qe5 {[%clk 0:03:35.9]} 20... Bf6
{[%clk 0:03:56.3]} 21. Qe1 {[%clk 0:03:31.9]} 0-1

[Event "Live Chess"]
[Site "Chess.com"]
[Date "2023.05.20"]
[Round "-"]
[White "noobsmoker24"]
[Black "Olisingapore"]
[Result "0-1"]
[WhiteElo "1379"]
[BlackElo "1940"]
[TimeControl "300"]
[EndTime "10:35:13 PDT"]
[Termination "Olisingapore won by checkmate"]

1. e4 {[%clk 0:04:54]} 1... c5 {[%clk 0:04:58.9]} 2. Nf3 {[%clk 0:04:53]} 2...
d6 {[%clk 0:04:58.3]} 3. d4 {[%clk 0:04:52.3]} 3... cxd4 {[%clk 0:04:58.2]} 4.
Nxd4 {[%clk 0:04:51.4]} 4... Nf6 {[%clk 0:04:57.9]} 5. Nc3 {[%clk 0:04:50.5]}
5... a6 {[%clk 0:04:57.6]} 6. Be2 {[%clk 0:04:48.5]} 6... e5 {[%clk 0:04:56.6]}
7. Nb3 {[%clk 0:04:47.4]} 7... Be7 {[%clk 0:04:56.2]} 8. Be3 {[%clk 0:04:46.4]}
8... O-O {[%clk 0:04:55.7]} 9. Qd2 {[%clk 0:04:45.5]} 9... Be6 {[%clk
0:04:55.4]} 10. f3 {[%clk 0:04:44.9]} 10... h5 {[%clk 0:04:54.7]} 11. O-O-O
{[%clk 0:04:44.2]} 11... Nbd7 {[%clk 0:04:54]} 12. h3 {[%clk 0:04:43.6]} 12...
Rc8 {[%clk 0:04:53.4]} 13. g4 {[%clk 0:04:42.8]} 13... hxg4 {[%clk 0:04:51.2]}
14. hxg4 {[%clk 0:04:42.7]} 14... Re8 {[%clk 0:04:32.6]} 15. g5 {[%clk
0:04:08.1]} 15... Nh7 {[%clk 0:04:29.2]} 16. f4 {[%clk 0:03:32]} 16... exf4
{[%clk 0:04:11.3]} 17. Bxf4 {[%clk 0:03:13.6]} 17... Bxg5 {[%clk 0:04:08.8]} 18.
Rxh7 {[%clk 0:03:10.3]} 18... Bxf4 {[%clk 0:04:04]} 19. Qxf4 {[%clk 0:02:53.9]}
19... Kxh7 {[%clk 0:03:56.2]} 20. Rh1+ {[%clk 0:02:49.1]} 20... Kg8 {[%clk
0:03:54.6]} 21. Qh2 {[%clk 0:02:25]} 21... Qg5+ {[%clk 0:03:51.6]} 22. Kb1
{[%clk 0:02:21.8]} 22... Qh6 {[%clk 0:03:48.3]} 23. Qg2 {[%clk 0:02:01.1]} 23...
Qg6 {[%clk 0:03:35.3]} 24. Qh2 {[%clk 0:01:59.6]} 24... Qh6 {[%clk 0:03:28.1]}
25. Qg2 {[%clk 0:01:49.4]} 25... Qf6 {[%clk 0:03:20.8]} 26. Qh2 {[%clk
0:01:43.5]} 26... g6 {[%clk 0:03:19.2]} 27. Nd5 {[%clk 0:01:05.2]} 27... Bxd5
{[%clk 0:03:14]} 28. exd5 {[%clk 0:01:05.1]} 28... Ne5 {[%clk 0:03:00.6]} 29.
Nd2 {[%clk 0:00:39.6]} 29... b5 {[%clk 0:02:28.3]} 30. Ne4 {[%clk 0:00:37.8]}
30... Qg7 {[%clk 0:01:55.7]} 31. Nxd6 {[%clk 0:00:36.7]} 31... f5 {[%clk
0:01:51.5]} 32. Nxc8 {[%clk 0:00:32.7]} 32... Rxc8 {[%clk 0:01:50.6]} 33. d6
{[%clk 0:00:28.8]} 33... Rd8 {[%clk 0:01:45.9]} 34. Rd1 {[%clk 0:00:25.1]} 34...
Qf6 {[%clk 0:01:43.4]} 35. Qg3 {[%clk 0:00:23.9]} 35... Rxd6 {[%clk 0:01:39]}
36. Rxd6 {[%clk 0:00:22.4]} 36... Qxd6 {[%clk 0:01:38.5]} 37. Bd3 {[%clk
0:00:21.6]} 37... Qc6 {[%clk 0:01:27.4]} 38. Be2 {[%clk 0:00:15.7]} 38... Qh1+
{[%clk 0:01:25.7]} 39. Bd1 {[%clk 0:00:14.5]} 39... Qxd1# {[%clk 0:01:24.9]} 0-1

[Event "Live Chess"]
[Site "Chess.com"]
[Date "2023.05.20"]
[Round "-"]
[White "Misha145Chess"]
[Black "zdanevych"]
[Result "1/2-1/2"]
[WhiteElo "619"]
[BlackElo "1545"]
[TimeControl "300"]
[EndTime "10:35:27 PDT"]
[Termination "Game drawn by stalemate"]

1. g4 {[%clk 0:04:57.5]} 1... d5 {[%clk 0:04:59.1]} 2. Bg2 {[%clk 0:04:54.8]}
2... e5 {[%clk 0:04:57]} 3. d3 {[%clk 0:04:48.4]} 3... Nc6 {[%clk 0:04:51.6]} 4.
Bd2 {[%clk 0:04:43.6]} 4... Bxg4 {[%clk 0:04:48.5]} 5. c4 {[%clk 0:04:39.7]}
5... d4 {[%clk 0:04:44.3]} 6. Bxc6+ {[%clk 0:04:29.9]} 6... bxc6 {[%clk
0:04:44.2]} 7. h3 {[%clk 0:04:28.3]} 7... Bh5 {[%clk 0:04:39]} 8. Qc2 {[%clk
0:04:22]} 8... Nf6 {[%clk 0:04:30.2]} 9. e3 {[%clk 0:04:20.6]} 9... dxe3 {[%clk
0:04:28]} 10. Bxe3 {[%clk 0:04:17.6]} 10... Bd6 {[%clk 0:04:18]} 11. Nc3 {[%clk
0:04:12.5]} 11... O-O {[%clk 0:04:09]} 12. c5 {[%clk 0:04:06.2]} 12... Be7
{[%clk 0:03:48.2]} 13. Nge2 {[%clk 0:04:04.4]} 13... Bf3 {[%clk 0:03:44.4]} 14.
Rh2 {[%clk 0:03:46.9]} 14... Nd5 {[%clk 0:03:42.8]} 15. Nxd5 {[%clk 0:03:45.3]}
15... cxd5 {[%clk 0:03:42.7]} 16. O-O-O {[%clk 0:03:37.9]} 16... d4 {[%clk
0:03:41.5]} 17. Bd2 {[%clk 0:03:32.8]} 17... c6 {[%clk 0:03:35.7]} 18. Bb4
{[%clk 0:03:28.1]} 18... a5 {[%clk 0:03:32.6]} 19. Ba3 {[%clk 0:03:27]} 19...
Rb8 {[%clk 0:03:25.5]} 20. Re1 {[%clk 0:03:20.8]} 20... Qd5 {[%clk 0:03:23.5]}
21. b3 {[%clk 0:03:13.5]} 21... Rb5 {[%clk 0:03:13.3]} 22. Qc4 {[%clk
0:02:53.5]} 22... Bxc5 {[%clk 0:03:07.1]} 23. Qxd5 {[%clk 0:02:43.5]} 23... Bxd5
{[%clk 0:03:01.6]} 24. Bxc5 {[%clk 0:02:26.8]} 24... Rxc5+ {[%clk 0:02:59.5]}
25. Kb2 {[%clk 0:02:25.9]} 25... h6 {[%clk 0:02:49.6]} 26. a3 {[%clk 0:02:25]}
26... Rb8 {[%clk 0:02:47.8]} 27. Nc1 {[%clk 0:02:19.5]} 27... Rcb5 {[%clk
0:02:43.7]} 28. Rxe5 {[%clk 0:02:10.1]} 28... Bxb3 {[%clk 0:02:35.4]} 29. Rxb5
{[%clk 0:02:07.3]} 29... Rxb5 {[%clk 0:02:32.7]} 30. Nxb3 {[%clk 0:02:05.7]}
30... a4 {[%clk 0:02:31.8]} 31. f4 {[%clk 0:01:54.8]} 31... axb3 {[%clk
0:02:31.7]} 32. a4 {[%clk 0:01:51.6]} 32... Rb6 {[%clk 0:02:22.6]} 33. a5 {[%clk
0:01:42.9]} 33... Ra6 {[%clk 0:02:19.5]} 34. Ka3 {[%clk 0:01:42.2]} 34... Rxa5+
{[%clk 0:02:17.8]} 35. Kxb3 {[%clk 0:01:41.3]} 35... c5 {[%clk 0:02:17.4]} 36.
Kc4 {[%clk 0:01:40.1]} 36... f6 {[%clk 0:02:15.2]} 37. Rc2 {[%clk 0:01:36.9]}
37... Kf7 {[%clk 0:02:14.3]} 38. Kd5 {[%clk 0:01:34.1]} 38... Ra3 {[%clk
0:02:05.6]} 39. Kc4 {[%clk 0:01:27.4]} 39... Ke6 {[%clk 0:02:00.5]} 40. Rd2
{[%clk 0:01:20.3]} 40... Kd6 {[%clk 0:01:58.4]} 41. f5 {[%clk 0:01:18.1]} 41...
Ra4+ {[%clk 0:01:56.7]} 42. Kb3 {[%clk 0:01:15.7]} 42... Rb4+ {[%clk 0:01:55.9]}
43. Kc2 {[%clk 0:01:14.5]} 43... Kd5 {[%clk 0:01:53.6]} 44. h4 {[%clk
0:01:10.1]} 44... c4 {[%clk 0:01:52.3]} 45. dxc4+ {[%clk 0:01:08.9]} 45... Rxc4+
{[%clk 0:01:52.2]} 46. Kd3 {[%clk 0:01:07.6]} 46... Rc3+ {[%clk 0:01:50.9]} 47.
Ke2 {[%clk 0:01:06.1]} 47... Re3+ {[%clk 0:01:49.5]} 48. Kd1 {[%clk 0:01:03.8]}
48... Rf3 {[%clk 0:01:45.9]} 49. h5 {[%clk 0:01:01.2]} 49... Rxf5 {[%clk
0:01:44.8]} 50. Ke2 {[%clk 0:00:57.5]} 50... Re5+ {[%clk 0:01:41.2]} 51. Kd3
{[%clk 0:00:56]} 51... Rxh5 {[%clk 0:01:40.8]} 52. Rh2 {[%clk 0:00:43.2]} 52...
Rxh2 {[%clk 0:01:39.6]} 1/2-1/2

[Event "Live Chess"]
[Site "Chess.com"]
[Date "2023.05.20"]
[Round "-"]
[White "lightningorderyt"]
[Black "ranvir123"]
[Result "1-0"]
[WhiteElo "549"]
[BlackElo "886"]
[TimeControl "300"]
[EndTime "10:35:38 PDT"]
[Termination "lightningorderyt won by checkmate"]

1. d4 {[%clk 0:04:54.7]} 1... e5 {[%clk 0:04:58.7]} 2. e3 {[%clk 0:04:45.6]}
2... exd4 {[%clk 0:04:56.4]} 3. exd4 {[%clk 0:04:43.5]} 3... Qe7+ {[%clk
0:04:55.9]} 4. Be3 {[%clk 0:04:38.3]} 4... Qb4+ {[%clk 0:04:52.4]} 5. Nc3 {[%clk
0:04:35.7]} 5... Nf6 {[%clk 0:04:48.6]} 6. b3 {[%clk 0:04:27]} 6... Qxc3+ {[%clk
0:04:46.3]} 7. Bd2 {[%clk 0:04:22.1]} 7... Qc6 {[%clk 0:04:43.9]} 8. Nf3 {[%clk
0:04:19]} 8... d5 {[%clk 0:04:42.1]} 9. a4 {[%clk 0:04:12.5]} 9... Bg4 {[%clk
0:04:39.9]} 10. Bb5 {[%clk 0:04:10.4]} 10... Bxf3 {[%clk 0:04:35.1]} 11. Qxf3
{[%clk 0:04:05]} 11... Qxb5 {[%clk 0:04:31.8]} 12. axb5 {[%clk 0:04:04]} 12...
Nbd7 {[%clk 0:04:29.7]} 13. O-O {[%clk 0:03:49.4]} 13... O-O-O {[%clk
0:04:28.7]} 14. Bg5 {[%clk 0:03:44.5]} 14... h6 {[%clk 0:04:26.3]} 15. Bh4
{[%clk 0:03:43.1]} 15... Be7 {[%clk 0:04:22.8]} 16. Bg3 {[%clk 0:03:17.8]} 16...
Rhe8 {[%clk 0:04:12.4]} 17. Qf4 {[%clk 0:03:15.8]} 17... Bd6 {[%clk 0:04:09]}
18. Qf3 {[%clk 0:03:04.7]} 18... Bxg3 {[%clk 0:03:59.3]} 19. Qxg3 {[%clk
0:03:01.9]} 19... Nh5 {[%clk 0:03:54]} 20. Qc3 {[%clk 0:02:45.8]} 20... Re2
{[%clk 0:03:47.6]} 21. Qf3 {[%clk 0:02:34.8]} 21... Rxc2 {[%clk 0:03:43.3]} 22.
Qxh5 {[%clk 0:02:32.1]} 22... Nf6 {[%clk 0:03:41.2]} 23. Qf5+ {[%clk 0:02:23.1]}
23... Kb8 {[%clk 0:03:36.1]} 24. Qxc2 {[%clk 0:02:21.1]} 24... Re8 {[%clk
0:03:31.5]} 25. b6 {[%clk 0:02:18.7]} 25... cxb6 {[%clk 0:03:28.7]} 26. Rfc1
{[%clk 0:02:08.6]} 26... Nh5 {[%clk 0:03:21.8]} 27. Qc7+ {[%clk 0:02:02.9]}
27... Ka8 {[%clk 0:03:18.7]} 28. Qxf7 {[%clk 0:01:42.4]} 28... Re2 {[%clk
0:03:07.5]} 29. Rc8# {[%clk 0:01:37.9]} 1-0

[Event "Live Chess"]
[Site "Chess.com"]
[Date "2023.05.20"]
[Round "-"]
[White "bristolunichess"]
[Black "WelshTiger"]
[Result "0-1"]
[WhiteElo "1811"]
[BlackElo "2438"]
[TimeControl "300"]
[EndTime "10:35:40 PDT"]
[Termination "WelshTiger won on time"]

1. d4 {[%clk 0:04:51]} 1... d5 {[%clk 0:04:55.1]} 2. Nf3 {[%clk 0:04:44.7]} 2...
e6 {[%clk 0:04:54.6]} 3. Nc3 {[%clk 0:04:17.8]} 3... c5 {[%clk 0:04:54.5]} 4. e3
{[%clk 0:04:07.4]} 4... Nc6 {[%clk 0:04:53.4]} 5. Be2 {[%clk 0:03:57.7]} 5...
Nf6 {[%clk 0:04:51.5]} 6. O-O {[%clk 0:03:42.7]} 6... Bd6 {[%clk 0:04:50.7]} 7.
b3 {[%clk 0:03:31.6]} 7... O-O {[%clk 0:04:48.6]} 8. Bb2 {[%clk 0:03:02.6]} 8...
a6 {[%clk 0:04:46.8]} 9. Qd2 {[%clk 0:02:46]} 9... b5 {[%clk 0:04:45.2]} 10.
dxc5 {[%clk 0:02:32.7]} 10... Bxc5 {[%clk 0:04:45.1]} 11. Rad1 {[%clk
0:02:16.9]} 11... Bb7 {[%clk 0:04:42.2]} 12. Ne5 {[%clk 0:01:51.6]} 12... Nxe5
{[%clk 0:04:39.2]} 13. Nxd5 {[%clk 0:01:37.1]} 13... Qxd5 {[%clk 0:04:36]} 14.
Qxd5 {[%clk 0:01:18.7]} 14... Bxd5 {[%clk 0:04:35.9]} 15. Bxe5 {[%clk
0:01:17.3]} 15... Rfd8 {[%clk 0:04:33.9]} 16. c4 {[%clk 0:01:02.8]} 16... Bc6
{[%clk 0:04:31.7]} 17. Rd3 {[%clk 0:00:51.2]} 17... Rxd3 {[%clk 0:04:29.9]} 18.
Bxd3 {[%clk 0:00:50]} 18... Rd8 {[%clk 0:04:29]} 19. Bxf6 {[%clk 0:00:40.4]}
19... Rxd3 {[%clk 0:04:22.9]} 20. Bh4 {[%clk 0:00:21.2]} 20... f5 {[%clk
0:04:15.4]} 21. f3 {[%clk 0:00:14.1]} 21... Bxe3+ {[%clk 0:04:13.9]} 22. Kh1
{[%clk 0:00:12.4]} 22... bxc4 {[%clk 0:04:13.2]} 23. bxc4 {[%clk 0:00:10.7]}
23... Rc3 {[%clk 0:04:12.7]} 24. Bf2 {[%clk 0:00:09.8]} 24... Rc1 {[%clk
0:04:11.7]} 25. Rxc1 {[%clk 0:00:08.4]} 25... Bxc1 {[%clk 0:04:11.6]} 26. Bb6
{[%clk 0:00:06.5]} 26... Kf7 {[%clk 0:04:09.2]} 27. c5 {[%clk 0:00:04.8]} 27...
e5 {[%clk 0:04:08.7]} 28. Kg1 {[%clk 0:00:03.2]} 28... Be3+ {[%clk 0:04:07.7]}
29. Kf1 {[%clk 0:00:02.2]} 29... Ke6 {[%clk 0:04:07.6]} 30. Ke2 {[%clk
0:00:01.6]} 30... Bg1 {[%clk 0:04:06.2]} 31. Kd3 {[%clk 0:00:01]} 31... Kd5
{[%clk 0:04:05]} 32. Kc2 {[%clk 0:00:00.4]} 32... Bxc5 {[%clk 0:04:03.7]} 33.
Kb3 {[%clk 0:00:00.2]} 33... Bxb6 {[%clk 0:04:02.8]} 0-1

[Event "Live Chess"]
[Site "Chess.com"]
[Date "2023.05.20"]
[Round "-"]
[White "laki79"]
[Black "JackRudd"]
[Result "1/2-1/2"]
[WhiteElo "2318"]
[BlackElo "2414"]
[TimeControl "300"]
[EndTime "10:35:43 PDT"]
[Termination "Game drawn by repetition"]

1. d4 {[%clk 0:04:54.9]} 1... Nf6 {[%clk 0:04:58.9]} 2. c4 {[%clk 0:04:53.4]}
2... e6 {[%clk 0:04:57.9]} 3. Nc3 {[%clk 0:04:52]} 3... Bb4 {[%clk 0:04:56.8]}
4. e3 {[%clk 0:04:50.7]} 4... b6 {[%clk 0:04:55.2]} 5. Bd3 {[%clk 0:04:48.9]}
5... Bb7 {[%clk 0:04:54]} 6. Ne2 {[%clk 0:04:47.1]} 6... Bxg2 {[%clk 0:04:52.1]}
7. Rg1 {[%clk 0:04:45.4]} 7... Be4 {[%clk 0:04:49.6]} 8. a3 {[%clk 0:04:37.4]}
8... Bxc3+ {[%clk 0:04:47]} 9. Nxc3 {[%clk 0:04:37.3]} 9... Bg6 {[%clk
0:04:46.1]} 10. e4 {[%clk 0:04:31.8]} 10... Nc6 {[%clk 0:04:44.2]} 11. Be3
{[%clk 0:04:28.7]} 11... e5 {[%clk 0:04:42.3]} 12. d5 {[%clk 0:04:21.8]} 12...
Nd4 {[%clk 0:04:41.4]} 13. f4 {[%clk 0:04:04.9]} 13... Bh5 {[%clk 0:04:37.7]}
14. Be2 {[%clk 0:03:59.5]} 14... Bxe2 {[%clk 0:04:33.8]} 15. Nxe2 {[%clk
0:03:54.5]} 15... Nxe4 {[%clk 0:04:31.8]} 16. Nxd4 {[%clk 0:03:44.6]} 16... Qh4+
{[%clk 0:04:30.5]} 17. Ke2 {[%clk 0:03:14.6]} 17... exd4 {[%clk 0:04:23.9]} 18.
Qxd4 {[%clk 0:02:50.8]} 18... f5 {[%clk 0:04:21.1]} 19. Qe5+ {[%clk 0:02:42.5]}
19... Kd8 {[%clk 0:04:18.6]} 20. Rxg7 {[%clk 0:01:55.4]} 20... Re8 {[%clk
0:04:15.5]} 21. Qxf5 {[%clk 0:01:47.7]} 21... Qxh2+ {[%clk 0:04:08.5]} 22. Kd3
{[%clk 0:01:45.7]} 22... Kc8 {[%clk 0:03:15.8]} 23. Qxd7+ {[%clk 0:01:42.3]}
23... Kb7 {[%clk 0:03:14.9]} 24. Qc6+ {[%clk 0:01:25.2]} 24... Ka6 {[%clk
0:03:14]} 25. Qb5+ {[%clk 0:01:20.5]} 25... Kb7 {[%clk 0:03:12.3]} 26. Qc6+
{[%clk 0:01:19.7]} 26... Ka6 {[%clk 0:03:11.5]} 27. Qb5+ {[%clk 0:01:18.8]}
27... Kb7 {[%clk 0:03:10.8]} 28. Qc6+ {[%clk 0:01:18]} 1/2-1/2

[Event "Live Chess"]
[Site "Chess.com"]
[Date "2023.05.20"]
[Round "-"]
[White "CeladonFish"]
[Black "Ninifu"]
[Result "0-1"]
[WhiteElo "1011"]
[BlackElo "1990"]
[TimeControl "300"]
[EndTime "10:35:45 PDT"]
[Termination "Ninifu won by checkmate"]

1. d4 {[%clk 0:04:56.8]} 1... Nf6 {[%clk 0:04:57.6]} 2. c4 {[%clk 0:04:54.7]}
2... g6 {[%clk 0:04:56.3]} 3. Nc3 {[%clk 0:04:51.8]} 3... Bg7 {[%clk 0:04:55.3]}
4. Bf4 {[%clk 0:04:50.1]} 4... O-O {[%clk 0:04:53.4]} 5. Nf3 {[%clk 0:04:48.7]}
5... c5 {[%clk 0:04:52.1]} 6. d5 {[%clk 0:04:45.8]} 6... d6 {[%clk 0:04:48.8]}
7. e4 {[%clk 0:04:44.9]} 7... Nbd7 {[%clk 0:04:42.2]} 8. Bd3 {[%clk 0:04:43.7]}
8... Ng4 {[%clk 0:04:41.1]} 9. h3 {[%clk 0:04:40.9]} 9... Nge5 {[%clk 0:04:40]}
10. Nxe5 {[%clk 0:04:39.2]} 10... Nxe5 {[%clk 0:04:38.3]} 11. Bxe5 {[%clk
0:04:37.2]} 11... Bxe5 {[%clk 0:04:36.3]} 12. O-O {[%clk 0:04:18.7]} 12... e6
{[%clk 0:04:34.5]} 13. dxe6 {[%clk 0:04:17.2]} 13... Bxe6 {[%clk 0:04:31.8]} 14.
Nd5 {[%clk 0:04:15.1]} 14... Bxd5 {[%clk 0:04:14.3]} 15. cxd5 {[%clk 0:04:11.5]}
15... a6 {[%clk 0:04:09.5]} 16. Qb3 {[%clk 0:04:07.3]} 16... b5 {[%clk
0:04:08.1]} 17. f4 {[%clk 0:04:01.3]} 17... Bd4+ {[%clk 0:04:05.6]} 18. Kh1
{[%clk 0:03:57]} 18... c4 {[%clk 0:04:04.8]} 19. Qb4 {[%clk 0:03:52.5]} 19... a5
{[%clk 0:03:59.7]} 20. Qxb5 {[%clk 0:03:36.4]} 20... cxd3 {[%clk 0:03:58.1]} 21.
Qxd3 {[%clk 0:03:35.1]} 21... Bxb2 {[%clk 0:03:56.7]} 22. Rab1 {[%clk
0:03:31.6]} 22... Rb8 {[%clk 0:03:50.3]} 23. Rf2 {[%clk 0:03:27.2]} 23... Bg7
{[%clk 0:03:42.7]} 24. Rxb8 {[%clk 0:03:21.6]} 24... Qxb8 {[%clk 0:03:41]} 25.
Qb3 {[%clk 0:03:12.7]} 25... Qxb3 {[%clk 0:03:38.1]} 26. axb3 {[%clk 0:03:11.7]}
26... Rb8 {[%clk 0:03:37.6]} 27. Rf3 {[%clk 0:03:05.7]} 27... Rb4 {[%clk
0:03:36.7]} 28. Kg1 {[%clk 0:03:03.5]} 28... Rxe4 {[%clk 0:03:34.8]} 29. Kf2
{[%clk 0:03:01.5]} 29... Bd4+ {[%clk 0:03:30.7]} 30. Kg3 {[%clk 0:02:57.1]}
30... Re3 {[%clk 0:03:29.4]} 31. Rxe3 {[%clk 0:02:55.5]} 31... Bxe3 {[%clk
0:03:28.3]} 32. Kf3 {[%clk 0:02:54.5]} 32... Bc5 {[%clk 0:03:27.6]} 33. Ke4
{[%clk 0:02:52.4]} 33... f5+ {[%clk 0:03:26.9]} 34. Kd3 {[%clk 0:02:50.9]} 34...
Kf8 {[%clk 0:03:17.2]} 35. Ke2 {[%clk 0:02:45.4]} 35... Ke8 {[%clk 0:03:15.6]}
36. Kf3 {[%clk 0:02:43.9]} 36... Kd8 {[%clk 0:03:08.6]} 37. g4 {[%clk
0:02:43.3]} 37... fxg4+ {[%clk 0:02:54.3]} 38. Kxg4 {[%clk 0:02:42.1]} 38... h6
{[%clk 0:02:45.8]} 39. h4 {[%clk 0:02:35.3]} 39... Ke7 {[%clk 0:02:43.8]} 40. f5
{[%clk 0:02:33.5]} 40... Kf7 {[%clk 0:02:39.1]} 41. fxg6+ {[%clk 0:02:11.4]}
41... Kxg6 {[%clk 0:02:37.3]} 42. h5+ {[%clk 0:02:10.3]} 42... Kf6 {[%clk
0:02:35.5]} 43. Kf4 {[%clk 0:02:08.4]} 43... Bb4 {[%clk 0:02:26.7]} 44. Kg4
{[%clk 0:02:04.2]} 44... Ke5 {[%clk 0:02:25.2]} 45. Kf3 {[%clk 0:01:58.9]} 45...
Kxd5 {[%clk 0:02:23.6]} 46. Kg4 {[%clk 0:01:58.4]} 46... Ke5 {[%clk 0:02:22.4]}
47. Kf3 {[%clk 0:01:57.4]} 47... d5 {[%clk 0:02:19.5]} 48. Kg4 {[%clk
0:01:56.4]} 48... d4 {[%clk 0:02:18.6]} 49. Kf3 {[%clk 0:01:55.5]} 49... d3
{[%clk 0:02:13.8]} 50. Ke3 {[%clk 0:01:55.1]} 50... d2 {[%clk 0:02:12.8]} 51.
Ke2 {[%clk 0:01:54.7]} 51... Kd4 {[%clk 0:02:10.5]} 52. Kd1 {[%clk 0:01:52.9]}
52... Kc3 {[%clk 0:02:09.3]} 53. Ke2 {[%clk 0:01:51.9]} 53... Kc2 {[%clk
0:02:08.2]} 54. Ke3 {[%clk 0:01:51.1]} 54... d1=Q {[%clk 0:02:06.8]} 55. Ke4
{[%clk 0:01:50.5]} 55... Qd6 {[%clk 0:02:05.3]} 56. Kf3 {[%clk 0:01:50.2]} 56...
Kd3 {[%clk 0:02:03.7]} 57. Kg4 {[%clk 0:01:48.6]} 57... Ke4 {[%clk 0:02:01]} 58.
Kh3 {[%clk 0:01:47]} 58... Kf3 {[%clk 0:01:56]} 59. Kh4 {[%clk 0:01:44.4]} 59...
Qg3# {[%clk 0:01:55.1]} 0-1

[Event "Live Chess"]
[Site "Chess.com"]
[Date "2023.05.20"]
[Round "-"]
[White "Hacker_2009"]
[Black "TheSmoulderingMaster"]
[Result "1-0"]
[WhiteElo "1914"]
[BlackElo "1784"]
[TimeControl "300"]
[EndTime "10:35:46 PDT"]
[Termination "Hacker_2009 won by resignation"]

1. d4 {[%clk 0:04:59]} 1... Nf6 {[%clk 0:04:58]} 2. Nf3 {[%clk 0:04:57.8]} 2...
d6 {[%clk 0:04:57]} 3. c4 {[%clk 0:04:56.1]} 3... g6 {[%clk 0:04:56.5]} 4. Nc3
{[%clk 0:04:54.9]} 4... Bg7 {[%clk 0:04:55.9]} 5. e4 {[%clk 0:04:54.5]} 5... O-O
{[%clk 0:04:54.9]} 6. Be2 {[%clk 0:04:54.2]} 6... e5 {[%clk 0:04:54]} 7. O-O
{[%clk 0:04:53.6]} 7... Nc6 {[%clk 0:04:52.5]} 8. d5 {[%clk 0:04:51.4]} 8... Nd4
{[%clk 0:04:51.6]} 9. Nxd4 {[%clk 0:04:49.4]} 9... exd4 {[%clk 0:04:51.1]} 10.
Qxd4 {[%clk 0:04:48.7]} 10... Re8 {[%clk 0:04:50.5]} 11. Bf3 {[%clk 0:04:46]}
11... Nxe4 {[%clk 0:04:46.4]} 12. Qd3 {[%clk 0:04:44.9]} 12... Nxc3 {[%clk
0:04:42.9]} 13. bxc3 {[%clk 0:04:44.8]} 13... Bf5 {[%clk 0:04:41]} 14. Qd2
{[%clk 0:04:40.6]} 14... Qf6 {[%clk 0:04:39.2]} 15. Ba3 {[%clk 0:04:35.9]} 15...
Qxc3 {[%clk 0:04:37.3]} 16. Qxc3 {[%clk 0:04:35.8]} 16... Bxc3 {[%clk 0:04:37]}
17. Rac1 {[%clk 0:04:34.5]} 17... Bd2 {[%clk 0:04:33.6]} 18. Rcd1 {[%clk
0:04:32.2]} 18... Bf4 {[%clk 0:04:32.5]} 19. g3 {[%clk 0:04:28.4]} 19... Bg5
{[%clk 0:04:30.6]} 20. Bg2 {[%clk 0:04:23.8]} 20... Bc2 {[%clk 0:04:29.2]} 21.
Rde1 {[%clk 0:04:17.3]} 21... Bd3 {[%clk 0:04:26.1]} 22. Rxe8+ {[%clk
0:04:14.2]} 22... Rxe8 {[%clk 0:04:26]} 23. Rd1 {[%clk 0:04:12.4]} 23... Bxc4
{[%clk 0:04:24.4]} 24. Rd4 {[%clk 0:04:07.3]} 24... Bxa2 {[%clk 0:04:21.7]} 25.
h4 {[%clk 0:03:58.3]} 25... Bf6 {[%clk 0:04:19.5]} 26. Ra4 {[%clk 0:03:55.6]}
26... Re1+ {[%clk 0:04:13.6]} 27. Kh2 {[%clk 0:03:52.8]} 27... Re2 {[%clk
0:04:10]} 28. Kg1 {[%clk 0:03:50.2]} 28... Rd2 {[%clk 0:04:06.8]} 29. Rxa7
{[%clk 0:03:46.4]} 29... Bd4 {[%clk 0:04:03.9]} 30. Rxb7 {[%clk 0:03:44.6]}
30... Bxf2+ {[%clk 0:04:01.2]} 31. Kh2 {[%clk 0:03:41.5]} 31... Bb6 {[%clk
0:04:00]} 32. Kh3 {[%clk 0:03:34.3]} 32... Bb1 {[%clk 0:03:55.7]} 33. Bc1 {[%clk
0:03:24.8]} 33... Bf5+ {[%clk 0:03:53.6]} 34. Kh2 {[%clk 0:03:22.4]} 34... Rc2
{[%clk 0:03:48.8]} 35. Bg5 {[%clk 0:03:17.3]} 35... Be4 {[%clk 0:03:45.3]} 36.
Bf6 {[%clk 0:03:16.5]} 36... Rxg2+ {[%clk 0:03:42.7]} 37. Kh3 {[%clk 0:03:15.3]}
37... Ba7 {[%clk 0:03:16.7]} 38. Rxa7 {[%clk 0:03:13.7]} 38... Bxd5 {[%clk
0:03:11.4]} 39. Rxc7 {[%clk 0:03:12.4]} 39... Be6+ {[%clk 0:03:09.3]} 40. Kxg2
{[%clk 0:03:10.9]} 1-0

[Event "Live Chess"]
[Site "Chess.com"]
[Date "2023.05.20"]
[Round "-"]
[White "Davidagye"]
[Black "AttackingSnowLeopard"]
[Result "0-1"]
[WhiteElo "1656"]
[BlackElo "2070"]
[TimeControl "300"]
[EndTime "10:35:53 PDT"]
[Termination "AttackingSnowLeopard won by resignation"]

1. b4 {[%clk 0:04:57.9]} 1... e5 {[%clk 0:04:57.3]} 2. Bb2 {[%clk 0:04:56.5]}
2... d6 {[%clk 0:04:53.8]} 3. c4 {[%clk 0:04:55.1]} 3... Nf6 {[%clk 0:04:52.8]}
4. e3 {[%clk 0:04:52.9]} 4... a5 {[%clk 0:04:50.6]} 5. b5 {[%clk 0:04:46.2]}
5... Be7 {[%clk 0:04:48.9]} 6. Nf3 {[%clk 0:04:44.7]} 6... O-O {[%clk
0:04:48.4]} 7. d4 {[%clk 0:04:43.7]} 7... exd4 {[%clk 0:04:44.3]} 8. Nxd4 {[%clk
0:04:42.1]} 8... d5 {[%clk 0:04:42.8]} 9. Bd3 {[%clk 0:04:39.5]} 9... dxc4
{[%clk 0:04:38.7]} 10. Bxc4 {[%clk 0:04:38.5]} 10... Bb4+ {[%clk 0:04:35.9]} 11.
Nd2 {[%clk 0:04:36.4]} 11... c5 {[%clk 0:04:33.2]} 12. bxc6 {[%clk 0:04:35.1]}
12... Nxc6 {[%clk 0:04:31]} 13. Nxc6 {[%clk 0:04:34.2]} 13... bxc6 {[%clk
0:04:30.9]} 14. Bd4 {[%clk 0:04:30.4]} 14... c5 {[%clk 0:04:29.5]} 15. Be5
{[%clk 0:04:28.1]} 15... Ne4 {[%clk 0:04:24.6]} 16. O-O {[%clk 0:04:12.6]} 16...
Nxd2 {[%clk 0:04:21.6]} 17. a3 {[%clk 0:04:06.1]} 17... Nxc4 {[%clk 0:04:18.7]}
0-1